Cogmind - Beta 15 @@@ ROGUE MODE // 2025.07.31 @ 23:14:22 Player: Inverisimilidude Result: Destroyed by G-50 Soldier with Heavy Laser Performance ------------- Evolutions (4) 2000 Regions Visited (14) 2800 Robots Destroyed (183) 915 Value Destroyed (6798) 6798 Prototype IDs (21) 420 Alien Tech Used (0) 0 Bonus (2067) 2067 TOTAL SCORE: 15000 Bonus ------- High Alert Combat Kills 495 Follower Combat Kills 204 Entered Garrisons 200 Used RIF Installer 1000 Met Data Miner 300 Friendly Fire -132 Cogmind --------- Core Integrity 0/850 Matter 3/300 Energy 100/100 System Corruption 9% Temperature Cool (9) Movement Core (50) Location -6/Extension Parts ------- > --- POWER (1) -------- (None) > --- PROPULSION (4) --- (None) > --- UTILITY (7) ------ Improved Signal Interpreter Advanced Signal Interpreter > --- WEAPON (3) ------- (None) > --- INVENTORY (5) ---- 7V-RTL's Ultimate Field High-powered Shock Rifle Heavy Machine Gun Heavy Flak Cannon Missile Launcher Peak State ------------ > --- POWER ------------ Micro Neutrino Core > --- PROPULSION ------- Carbon-fiber Leg Wheel Backup Propulsion III > --- UTILITY ---------- Improved Cooling System High-capacity Storage Unit Experimental Energy Well Improved Signal Interpreter Heart of Steel > --- WEAPON ----------- Lightning Gun Precision Shock Rifle Improved Proton Missile Launcher > --- INVENTORY -------- Experimental Power Amplifier Advanced Heat Sink Advanced Sensor Array Improved Signal Interpreter Improved Heavy Armor Plating Insulated Plating EM Shield 7V-RTL's Ultimate Field Authchip [R/Combat] Field Recycling Unit High-powered Shock Rifle High-powered Shock Rifle High-powered Shock Rifle Backup Laser III Gauss Cannon Missile Launcher Remote Datajack Dirty Bomb Trap [Rating: 78] Favorites ----------- Power Micro Neutrino Core Engine Light Angular Momentum Engine Power Core Micro Neutrino Core Propulsion Wheel Treads Light Treads Leg Carbon-fiber Leg Wheel Wheel Hover Unit Backup Propulsion III Flight Unit VTOL Module Utility High-capacity Storage Unit Device Improved Sensor Array Storage High-capacity Storage Unit Processor Improved Signal Interpreter Hackware Relay Coupler [Heavy] Protection Improved Heavy Armor Plating Weapon Improved Assault Rifle Energy Gun Cooled Pulse Rifle Energy Cannon Light EM Pulse Cannon Ballistic Gun Improved Assault Rifle Ballistic Cannon Gauss Cannon Launcher Missile Launcher Special Weapon Remote Datajack Impact Weapon Great Maul Slashing Weapon Katana Build | -11 -10 -9 -9 -9 -8 -8 -8 -8 -7 -7 -7 -6 -6 -6 ------- Run | Yrd Mat Mat Min Exi Min Mat Gar Mat Fac Low Dat Pro Fac Ext Slots Evolved 8 | . . 2 . . . 2 . . 2 . . . 2 . Power . | . . . . . . . . . . . . . . . Propulsion 2 | . . . . . . 1 . . 1 . . . . . Utility 5 | . . 2 . . . . . . 1 . . . 2 . Weapon 1 | . . . . . . 1 . . . . . . . . Parts Attached 142 | 7 5 3 9 2 18 13 9 9 32 9 . 1 25 . Power 10 | 1 1 . 3 . 3 . . 1 1 . . . . . Engine 8 | 1 1 . 3 . 1 . . 1 1 . . . . . Core 2 | . . . . . 2 . . . . . . . . . Reactor . | . . . . . . . . . . . . . . . Propulsion 36 | 2 2 2 2 . 5 1 2 1 13 1 . . 5 . Treads 10 | . 2 . . . 1 1 2 1 3 . . . . . Leg 3 | . . . . . . . . . 1 1 . . 1 . Wheel 18 | 2 . 2 2 . 4 . . . 5 . . . 3 . Hover 1 | . . . . . . . . . . . . . 1 . Flight 4 | . . . . . . . . . 4 . . . . . Utility 48 | 2 . 1 2 1 5 6 3 4 7 4 . . 13 . Device 16 | 1 . 1 . . 3 3 . . 2 2 . . 4 . Storage 8 | 1 . . 2 1 1 . 1 . 1 . . . 1 . Processor 7 | . . . . . . 1 . 1 . . . . 5 . Hackware 5 | . . . . . . . . 2 . 1 . . 2 . Protection 12 | . . . . . 1 2 2 1 4 1 . . 1 . Artifact . | . . . . . . . . . . . . . . . Weapon 48 | 2 2 . 2 1 5 6 4 3 11 4 . 1 7 . Energy Gun 14 | 1 1 . . . 1 1 . . 4 1 . 1 4 . Energy Cannon 1 | . . . . . . 1 . . . . . . . . Ballistic Gun 17 | 1 1 . 1 . 1 3 2 2 5 1 . . . . Ballistic Cannon 5 | . . . . . 1 . 1 . 1 1 . . 1 . Launcher 4 | . . . . 1 . 1 . . . 1 . . 1 . Special Weapon 4 | . . . 1 . . . . 1 1 . . . 1 . Impact Weapon 1 | . . . . . . . 1 . . . . . . . Slashing Weapon 2 | . . . . . 2 . . . . . . . . . Piercing Weapon . | . . . . . . . . . . . . . . . Special Melee Weapon . | . . . . . . . . . . . . . . . Unidentified Prototypes 10 | . . . . . 4 2 . . 3 . . . 1 . Corrupted Parts 1 | . . . . . . . . . . . . . 1 . System Corruption 1 | . . . . . . . . . . . . . 1 . Parts Lost 79 | . 4 2 3 . 8 5 4 9 19 9 . . 16 . Power 8 | . 1 1 2 . 1 . . 1 1 . . . 1 . Propulsion 23 | . 1 1 . . 4 . . 2 8 2 . . 5 . Utility 19 | . . . 1 . . 3 2 3 2 4 . . 4 . Weapon 29 | . 2 . . . 3 2 2 3 8 3 . . 6 . Highest Loss Streak 7 | . 3 2 1 . 6 1 2 5 7 5 . . 7 . To Critical Strikes . | . . . . . . . . . . . . . . . Average Backups 15 | 5 7 7 9 14 16 19 19 18 18 15 15 12 12 4 Power . | . . . . 1 1 1 1 1 . . . . . . Propulsion 1 | 3 5 5 3 3 2 3 2 1 . . . . . . Utility 8 | . . . 1 2 4 8 10 9 11 9 9 8 8 1 Weapon 4 | . . 2 4 8 7 6 5 5 4 3 4 2 3 3 Tool/Special . | . . . . . . . . . . . . . . . Unused Backups 25 | . . . . . 2 7 6 . 2 2 1 . 4 1 Power 2 | . . . . . 1 1 . . . . . . . . Propulsion 1 | . . . . . . . . . 1 . . . . . Utility 16 | . . . . . . 4 6 . . 2 1 . 3 . Weapon 5 | . . . . . 1 2 . . 1 . . . . 1 Tool/Special 1 | . . . . . . . . . . . . . 1 . Average Slot Usage (%) 78 | . 99 79 83 77 80 88 89 85 95 74 46 68 61 14 Engine 3 | . 13 7 8 11 5 8 8 8 2 . . . . . Core 3 | . . . . . 5 . . . 4 7 7 7 4 . Treads 5 | . 7 12 . . 1 18 17 16 7 . . . . . Leg 2 | . . . . . . . . . 1 3 7 7 4 . Wheel 7 | . 20 5 22 22 14 . . 1 13 4 . . 3 . Device 11 | . 14 22 19 11 18 18 11 6 8 7 7 7 13 . Storage 8 | . 14 11 11 11 11 9 9 9 7 8 7 9 5 . Processor 4 | . . . . . . 4 9 9 7 7 7 4 3 13 Hackware 1 | . . . . . . . . 3 7 4 . . . . Protection 4 | . . . . . 2 2 5 3 5 5 7 7 3 . Energy Gun 6 | . 10 . . . . 1 . . 7 12 . 8 11 . Ballistic Gun 8 | . 17 22 21 21 11 16 14 16 12 2 . . . . Ballistic Cannon 3 | . . . . . 4 2 3 6 . 7 . 6 3 . Peak Build Rating 78 | 7 7 8 9 10 48 47 63 56 51 60 46 60 78 13 Average Rating 42 | 5 6 7 8 9 16 44 47 42 46 50 38 51 60 10 On Entrance 26 | . 7 7 6 9 9 41 46 45 29 48 50 38 54 10 Naked Turns 1 | . . . . . . . . . . . . . 1 . Heaviest Build 99 | 14 14 15 88 87 74 67 80 80 70 82 61 99 88 . Greatest Support 80 | 20 40 40 26 26 60 80 80 80 42 26 15 15 20 3 Greatest Overweight (x) 27 | . . . 3 3 7 . 4 3 4 27 4 6 25 . Average Overweight (x) 2 | . . . 1 2 2 . . . 2 3 4 5 3 . Largest Inventory Capacity 25 | 8 8 8 25 25 20 20 20 20 20 20 20 20 20 5 Average Capacity 19 | 7 8 8 17 23 20 20 20 20 20 20 20 20 17 5 Most Carried 20 | 7 8 8 14 16 20 20 20 20 20 20 20 19 20 5 Average Carried 16 | 5 7 7 9 14 16 19 19 18 18 17 19 16 14 4 Final Capacity 25 | 8 8 8 25 20 20 20 20 20 20 20 20 20 5 5 Final Carried 20 | 7 8 8 14 16 20 20 20 17 20 18 20 16 5 5 Class Distribution -------------------- 29% | Skirmisher 19% | Mutant 17% | Tank 17% | Scavenger-Mutant 8% | Scavenger-Tank 4% | Scavenger-Skirmisher 3% | Gunner Dominant Class ---------------- Mutant | -10/Materials Mutant | -9/Materials Scavenger-Mutant | -9/Mines Scavenger-Mutant | -9/Exiles Scavenger-Mutant | -8/Mines Scavenger-Tank | -8/Materials Mutant | -8/Garrison Mutant | -8/Materials Scavenger-Skirmisher | -7/Factory Skirmisher | -7/Lower Caves Mutant | -7/Data Miner Skirmisher | -6/Proximity Caves Tank | -6/Factory Mutant | -6/Extension Resources | -11 -10 -9 -9 -9 -8 -8 -8 -8 -7 -7 -7 -6 -6 -6 ----------- Run | Yrd Mat Mat Min Exi Min Mat Gar Mat Fac Low Dat Pro Fac Ext Matter Collected 6464 | 290 40 . 262 . 301 855 326 1078 1110 720 . 38 1444 . Remotely . | . . . . . . . . . . . . . . . Salvage Created 6999 | 137 161 . 407 . 237 1140 415 851 1497 618 . 27 1509 . Parts 361 | 9 14 . 26 . 15 64 46 34 74 28 . 3 48 . Haulers Intercepted 3 | . . . . . . 2 . . 1 . . . . . Recyclers Shooed 5 | . . . 1 . . . . . . . . . 4 . Parts Field Recycled 25 | . . . . . . . . . . . . . 25 . Retrieved Matter 166 | . . . . . . . . . . . . . 166 . Parts Self-Destructed 34 | . . . . . . . . . . 28 . 6 . . Prevented 1 | . . . . . . . . . . 1 . . . . Kills | -11 -10 -9 -9 -9 -8 -8 -8 -8 -7 -7 -7 -6 -6 -6 ------- Run | Yrd Mat Mat Min Exi Min Mat Gar Mat Fac Low Dat Pro Fac Ext Combat Hostiles Destroyed 137 | . 5 . 10 . 4 21 18 16 26 18 . 3 16 . Melee 1 | . . . . . 1 . . . . . . . . . Guns 89 | . 5 . 10 . 3 11 13 12 22 10 . . 3 . Cannons 26 | . . . . . . 10 . 3 1 7 . . 5 . AOE 15 | . . . . . . . 5 . 3 1 . 3 3 . Classes Destroyed 17 | 2 3 . 1 . 1 4 2 1 2 . . . 1 . Worker 16 | . . . 2 . . . . 3 5 . . . 6 . Builder 1 | . . . . . . . . . . . . . 1 . Tunneler 6 | 4 . . . . 1 . . . 1 . . . . . Hauler 3 | . . . . . . 2 . . 1 . . . . . Recycler 13 | 1 . . 2 . . 1 . 2 3 . . . 4 . Mechanic 2 | . . . . . . . . . 1 . . . 1 . Operator 2 | . 1 . . . . 1 . . . . . . . . Watcher 3 | . . . . . . 1 . 1 1 . . . . . Swarmer 31 | . 3 . 8 . 1 3 7 3 . 3 . 3 . . Cutter 2 | . . . . . . . 2 . . . . . . . Grunt 62 | . 2 . 2 . 1 11 2 10 13 13 . . 8 . Brawler 3 | . . . . . . 1 . 1 . . . . 1 . Duelist 4 | . . . . . 1 . . . 1 1 . . 1 . Protector 1 | . . . . . . . . 1 . . . . . . Sentry 17 | . . . . . . 6 4 1 4 . . . 2 . Hunter 3 | . . . . . . . . . 2 1 . . . . Programmer 13 | . . . . . . . 3 . 6 . . . 4 . Best Kill Streak 10 | 2 3 . 5 . 1 3 4 6 8 7 . 3 10 . Combat Bots Only 7 | . 3 . 3 . 1 3 4 4 5 7 . 3 4 . Max Kills in Single Turn 4 | 1 1 . 1 . 1 1 2 2 3 2 . 3 4 . Gunslinging 1 | . . . . . . . 1 . 1 . . . . . Exploded 3 | . . . . . . . 2 . 1 1 . 3 3 . Melee 1 | . . . . . 1 . . . . . . . . . Uniques/NPCs Destroyed 1 | . . . . . 1 . . . . . . . . . 7V-RTL (-8/Mines) Combat | -11 -10 -9 -9 -9 -8 -8 -8 -8 -7 -7 -7 -6 -6 -6 -------- Run | Yrd Mat Mat Min Exi Min Mat Gar Mat Fac Low Dat Pro Fac Ext Hostile Shots Fired 1110 | . 29 38 46 . 22 87 86 88 292 115 . 24 270 13 Missed 306 | . 4 13 14 . 2 12 26 19 92 28 . 8 84 4 Hits 804 | . 25 25 32 . 20 75 60 69 200 87 . 16 186 9 Melee 23 | . . 1 . . 5 2 6 . 2 3 . . 4 . Projectile 781 | . 25 24 32 . 15 73 54 69 198 84 . 16 182 9 AOE 1 | . . . . . . 1 . . . . . . . . Critical Strikes 33 | . . . 1 . 3 3 4 4 5 1 . . 11 1 Part Disruptions 1 | . . . . . . . . . 1 . . . . . Damage Taken 12613 | 38 277 318 323 . 435 1181 746 1468 2783 1373 . 211 3270 190 Core 2122 | . . 82 53 . 153 146 39 143 298 322 . 36 660 190 Absorbed by Shields 559 | . . . . . . . 181 175 . 70 . 133 . . Ignored by Resistances 16 | . . . . . . . . . . . . . 16 . Core Remaining (%) 54 | 100 100 . . . 28 . . 40 . . . 6 . . Volleys Fired 429 | 20 17 1 31 2 19 63 31 42 92 35 . 4 72 . Largest 3 | 2 2 2 2 1 2 3 3 3 3 3 . 3 3 . Hottest 180 | 60 60 40 100 33 60 116 81 83 143 131 . 131 180 . Shots Fired 1097 | 36 32 2 61 2 35 188 92 120 250 106 . 8 165 . Gun 918 | 36 32 2 60 . 35 136 81 98 234 69 . 3 132 . Cannon 143 | . . . . . . 52 1 20 7 34 . 3 26 . Launcher 28 | . . . . 2 . . 10 . 7 3 . 2 4 . Special 8 | . . . 1 . . . . 2 2 . . . 3 . Kinetic 714 | 20 18 2 60 . 27 146 82 118 162 50 . 3 26 . Thermal 111 | . . . 1 . . 15 . . 34 36 . . 25 . Explosive 24 | . . . . 2 . . 10 . 7 3 . 2 . . Electromagnetic 243 | 16 14 . . . 8 27 . . 47 17 . 3 111 . Robot Hit Streak 42 | 6 7 1 4 . 6 40 42 11 16 6 . 2 26 . Robot Miss Streak 8 | 3 3 1 3 . 6 5 4 4 8 8 . 2 4 . Penetration Max 1 | . . . . . . . . . 1 . . . . . Secondary Targets 12 | . 1 . 3 . . . 2 2 4 . . . . . Max Gunslinging Chain 2 | . 1 . 1 . . . 2 1 1 . . . . . Shots Hit Robots 741 | 20 21 1 39 . 20 120 59 85 190 60 . 3 123 . Core Hits 437 | 8 10 . 25 . 10 52 31 48 138 42 . 3 70 . Critical Kills 1 | . . . . . . . . 1 . . . . . . Critical Parts Destroyed 5 | . . . . . . . 2 3 . . . . . . Critical Strikes 26 | 1 . . . . . 3 2 5 3 4 . . 8 . Burn 2 | . . . . . . . . . 2 . . . . . Destroy 4 | . . . . . . . 2 2 . . . . . . Blast 9 | . . . . . . 2 . . 1 3 . . 3 . Corrupt 8 | 1 . . . . . 1 . . . 1 . . 5 . Smash 3 | . . . . . . . . 3 . . . . . . Melee Attacks 82 | . . . . . 1 1 73 6 1 . . . . . Impact 80 | . . . . . . . 73 6 1 . . . . . Slashing 2 | . . . . . 1 1 . . . . . . . . Piercing . | . . . . . . . . . . . . . . . Sneak Attacks 2 | . . . . . . . . 2 . . . . . . Combat Hostiles . | . . . . . . . . . . . . . . . Follow-up Attacks . | . . . . . . . . . . . . . . . Damage Inflicted 16387 | 258 232 6 440 24 215 2142 1392 1935 4084 1503 . 293 3863 . Guns 10187 | 210 232 6 440 . 182 1206 943 1073 3345 769 . . 1781 . Cannons 2499 | . . . . . . 825 . 391 126 449 . 59 649 . Explosions 3312 | 48 . . . 24 . 111 449 124 613 285 . 234 1424 . Melee 380 | . . . . . 33 . . 347 . . . . . . Ramming 9 | . . . . . . . . . . . . . 9 . Kinetic 8147 | 78 86 6 440 . 135 1307 943 1464 2297 683 . 59 649 . Thermal 2358 | 48 . . . . . 184 . 124 817 395 . . 790 . Explosive 2051 | . . . . 24 . 111 449 . 363 285 . 234 585 . Electromagnetic 3442 | 132 146 . . . 47 540 . . 607 140 . . 1830 . Impact 347 | . . . . . . . . 347 . . . . . . Slashing 33 | . . . . . 33 . . . . . . . . . Piercing . | . . . . . . . . . . . . . . . Highest Corruption 9 | . . . . . . 1 4 4 5 5 5 5 9 9 Average Corruption 4 | . . . . . . 1 2 4 4 5 5 5 5 9 Corruption Purged . | . . . . . . . . . . . . . . . Corruption Blocked . | . . . . . . . . . . . . . . . Effects 266 | . . . . . . 13 17 23 48 82 10 34 36 3 Message Errors 76 | . . . . . . 5 3 8 13 23 3 10 10 1 Matter Fused 57 | . . . . . . 1 5 3 11 22 3 6 5 1 Heat Flow Errors 30 | . . . . . . 2 4 1 5 9 . 5 4 . Energy Discharges 28 | . . . . . . 1 . 2 7 6 2 6 4 . Parts Rejected 3 | . . . . . . . . 1 1 1 . . . . Parts Fused 2 | . . . . . . . . 1 . . . . 1 . Data Loss (minor) 29 | . . . . . . 1 2 2 4 6 2 4 7 1 Data Loss (major) 15 | . . . . . . 1 . 1 3 4 . 3 3 . Misfires 14 | . . . . . . 1 2 2 1 7 . . 1 . Alerts 6 | . . . . . . 1 . 2 2 1 . . . . Weapon Failures 6 | . . . . . . . 1 . 1 3 . . 1 . Overload Shots 10 | . . . . . . . . . 10 . . . . . Effects 1 | . . . . . . . . . 1 . . . . . Energy Bleed 1 | . . . . . . . . . 1 . . . . . Overflow Damage 477 | . . . . . . 61 24 251 74 16 . 3 48 . Projectiles 63 | . . . . . . . . . . 16 . 3 44 . Explosions 163 | . . . . . . 61 24 . 74 . . . 4 . Melee 251 | . . . . . . . . 251 . . . . . . Knockbacks 23 | . . . . . . 3 . 7 1 4 . . 8 . Impact 2 | . . . . . . . . 2 . . . . . . Kinetic 21 | . . . . . . 3 . 5 1 4 . . 8 . Secondary . | . . . . . . . . . . . . . . . Self-Inflicted Damage 937 | 38 . . . . . . 122 248 266 24 . 56 183 . Shots 19 | 1 . . . . . . 3 3 5 1 . 1 5 . Rammed 2 | . . . . . . . . . . . . . 2 . Targets Rammed 2 | . . . . . . . . . . . . . 2 . Kicked . | . . . . . . . . . . . . . . . Crushed . | . . . . . . . . . . . . . . . Highest Temperature 314 | 52 116 3 6 . 1 203 265 158 255 272 . 242 314 . Average Temperature 69 | 25 49 3 3 . 1 53 73 70 66 94 . 83 74 . Received Heat Transfer 4020 | . 102 156 81 . 108 477 149 493 684 519 . . 1152 99 Effects 5 | . . . . . . . 1 . . 3 . . 1 . Energy Bleed 1 | . . . . . . . . . . . . . 1 . Interference 4 | . . . . . . . 1 . . 3 . . . . Siege Activations . | . . . . . . . . . . . . . . . Martial Activations . | . . . . . . . . . . . . . . . Shielding Activations . | . . . . . . . . . . . . . . . Robots Disrupted 1 | . . . . . . . . . . . . . 1 . Combat Hostiles 1 | . . . . . . . . . . . . . 1 . Robots Corrupted 8 | . . . . . . . . 3 . . . . 5 . Combat Hostiles 6 | . . . . . . . . 1 . . . . 5 . Parts Fried 17 | . 1 . . . . 1 . 2 1 . . . 12 . Impact Corruptions 8 | . . . . . . . . 8 . . . . . . Robots Melted . | . . . . . . . . . . . . . . . Combat Hostiles . | . . . . . . . . . . . . . . . Parts Melted 7 | . . . . . . 2 . . 3 1 . . 1 . Heat Transferred 3556 | 50 . . . . . 407 . 50 1177 777 . . 1095 . Parts Sabotaged . | . . . . . . . . . . . . . . . Parts Stolen . | . . . . . . . . . . . . . . . Parts Stripped . | . . . . . . . . . . . . . . . Power Chain Reactions 8 | 1 . . . . . . . . 2 . . . 5 . Alert | -11 -10 -9 -9 -9 -8 -8 -8 -8 -7 -7 -7 -6 -6 -6 ------- Run | Yrd Mat Mat Min Exi Min Mat Gar Mat Fac Low Dat Pro Fac Ext Maximum Alert Level 3 | . . . . . . 1 3 2 2 . . . 2 1 Low Security (%) 60 | 100 100 100 100 . 100 93 5 . 43 . . . 74 . Level 1 9 | . . . . . . 6 6 . 40 . . . . 100 Level 2 24 | . . . . . . . 48 100 15 . . . 24 . Level 3 5 | . . . . . . . 39 . . . . . . . Level 4 . | . . . . . . . . . . . . . . . Level 5 . | . . . . . . . . . . . . . . . High Security . | . . . . . . . . . . . . . . . Max Security . | . . . . . . . . . . . . . . . Peak Influence 1096 | 5 55 75 130 . 30 243 1096 559 513 . . . 667 317 Initial 534 | . . . 25 . . . 155 534 236 . . . 18 317 Average 238 | . 14 11 44 . 1 90 654 493 237 . . . 190 307 Influence Increases 5813 | 25 147 75 351 . 75 749 981 538 1109 390 . 127 1246 . Destroy 0b10 Robot/C 2880 | . 100 . 280 . 60 420 360 300 520 360 . 80 400 . Destroy 0b10 Robot/NC 235 | 25 5 . 20 . 5 25 . 35 60 . . . 60 . Destroy Leader 542 | . 20 . 40 . 10 106 20 42 164 30 . 10 100 . Allied During Kill 56 | . . . 10 . . . . . . . . 22 24 . Trap Triggered on 0b10 10 | . . . . . . . . . . . . . 10 . Successful Hack 62 | . 7 . . . . 35 . 7 7 . . . 6 . Disable Machine 465 | . . . . . . 60 . 75 120 . . . 210 . Anti-Garrison Action 400 | . . . . . . . 250 . . . . . 150 . Destroy Structure 443 | . . . 1 . . 43 216 49 73 . . . 61 . Partial Spotted 30 | . . . . . . . . . 15 . . . 15 . Lose Combat Pursuer 690 | . 15 75 . . . 60 135 30 150 . . 15 210 . Influence Decreases 5516 | 25 144 13 412 4 75 510 124 1114 1120 899 . 98 626 352 Entered New Map 1509 | . . 3 40 4 . . 84 562 284 189 . . 11 332 Time Decay 3212 | 25 122 10 312 . 43 469 . 422 646 630 . 98 415 20 Lost Part 675 | . 22 . 20 . 32 41 40 90 190 80 . . 160 . Lost Ally 120 | . . . 40 . . . . 40 . . . . 40 . Squads Dispatched 38 | . . . . . . 6 . 3 11 . . . 16 2 Investigation 7 | . . . . . . 1 . . 1 . . . 4 1 Extermination 10 | . . . . . . . . . 5 . . . 5 . Reinforcement 13 | . . . . . . 2 . 1 5 . . . 4 1 Assault 4 | . . . . . . . . 2 . . . . 2 . Garrison 4 | . . . . . . 3 . . . . . . 1 . Intercept . | . . . . . . . . . . . . . . . Searches Triggered . | . . . . . . . . . . . . . . . Data Miner Redirects 6 | . . . . . . . . . . . . . 6 . Construction Impeded 3 | . . . . . . . . . 2 . . . 1 . Haulers Reinforced 2 | . . . . . . . . . 1 . . . 1 . Active Scanning Responses . | . . . . . . . . . . . . . . . Cargo Convoy Interrupts 1 | . . . . . . . . . . . . . 1 . Stealth | -11 -10 -9 -9 -9 -8 -8 -8 -8 -7 -7 -7 -6 -6 -6 --------- Run | Yrd Mat Mat Min Exi Min Mat Gar Mat Fac Low Dat Pro Fac Ext Distress Signals 19 | . 1 1 . . . 6 . 3 3 . . . 4 1 Communications Jammed . | . . . . . . . . . . . . . . . Distress Signals . | . . . . . . . . . . . . . . . Times Spotted 258 | . 10 15 15 1 5 31 29 32 46 18 . 5 47 4 Peak Tracking Total 10 | . 5 10 4 10 2 4 7 7 5 4 . 4 7 4 Tactical Retreats 29 | . 1 1 . . 1 3 7 2 7 . . 1 6 . Traps | -11 -10 -9 -9 -9 -8 -8 -8 -8 -7 -7 -7 -6 -6 -6 ------- Run | Yrd Mat Mat Min Exi Min Mat Gar Mat Fac Low Dat Pro Fac Ext Traps Triggered 10 | . 1 . . . . 1 2 . 3 . . . 1 2 Indirectly . | . . . . . . . . . . . . . . . Trap Hack Attempts . | . . . . . . . . . . . . . . . Triggered . | . . . . . . . . . . . . . . . Disarmed . | . . . . . . . . . . . . . . . Reprogrammed . | . . . . . . . . . . . . . . . Reused 1 | . . . . . . . . . . . . . 1 . Traps Extracted . | . . . . . . . . . . . . . . . Installed 1 | . . . . . . . . . . . . . 1 . Triggered 1 | . . . . . . . . . . . . . 1 . Most Traps Carried 1 | . . . . . . . . . . 1 1 1 1 . Objects Rigged 1 | . . . . . . 1 . . . . . . . . Exploded 1 | . . . . . . 1 . . . . . . . . Machines | -11 -10 -9 -9 -9 -8 -8 -8 -8 -7 -7 -7 -6 -6 -6 ---------- Run | Yrd Mat Mat Min Exi Min Mat Gar Mat Fac Low Dat Pro Fac Ext Machines Disabled 42 | . . . . 2 . 4 4 5 8 4 . . 15 . Max in Single Turn 6 | . . . . 1 . 2 1 3 2 3 . . 6 . Garrison Access 3 | . . . . . . . . . 1 . . . 2 . Garrison Relay 3 | . . . . . . . 3 . . . . . . . Machines Repaired . | . . . . . . . . . . . . . . . Machines Dismantled . | . . . . . . . . . . . . . . . Machines Sabotaged . | . . . . . . . . . . . . . . . Overloaded Fab Kills . | . . . . . . . . . . . . . . . Hacking | -11 -10 -9 -9 -9 -8 -8 -8 -8 -7 -7 -7 -6 -6 -6 --------- Run | Yrd Mat Mat Min Exi Min Mat Gar Mat Fac Low Dat Pro Fac Ext Machines Accessed 30 | . 3 . . 1 . 7 . 4 3 2 4 . 5 1 Terminals 16 | . 3 . . . . 5 . 2 2 . . . 3 1 Fabricators . | . . . . . . . . . . . . . . . Repair Stations . | . . . . . . . . . . . . . . . Recycling Units 1 | . . . . . . . . . . . . . 1 . Scanalyzers 3 | . . . . . . 1 . 2 . . . . . . Garrison Access 3 | . . . . . . 1 . . 1 . . . 1 . Total Hacks 99 | . 17 . . 1 . 18 . 9 5 2 30 . 15 2 Successful 58 | . 4 . . 1 . 10 . 5 2 2 30 . 4 . Failed 41 | . 13 . . . . 8 . 4 3 . . . 11 2 Catastrophic 8 | . 3 . . . . 2 . 1 . . . . 1 1 Database Lockouts . | . . . . . . . . . . . . . . . Manual 25 | . 10 . . . . 4 . 3 2 . . . 6 . Terminals 47 | . 17 . . . . 11 . 6 4 . . . 7 2 Fabricators . | . . . . . . . . . . . . . . . Repair Stations . | . . . . . . . . . . . . . . . Recycling Units 3 | . . . . . . . . . . . . . 3 . Scanalyzers 7 | . . . . . . 4 . 3 . . . . . . Garrison Access 9 | . . . . . . 3 . . 1 . . . 5 . Terminal Hacks 40 | . 3 . . 1 . 2 . 1 1 2 30 . . . Record 12 | . . . . 1 . . . . . . 11 . . . Part Schematic 14 | . 1 . . . . . . . 1 . 12 . . . Robot Schematic 4 | . . . . . . . . . . . 4 . . . Robot Analysis 1 | . . . . . . 1 . . . . . . . . Prototype ID Bank 3 | . . . . . . . . . . . 3 . . . Open Door 2 | . . . . . . . . . . 2 . . . . Terminal Index 1 | . . . . . . 1 . . . . . . . . Security Status 1 | . 1 . . . . . . . . . . . . . Registered Components 2 | . 1 . . . . . . 1 . . . . . . Fabricator Hacks . | . . . . . . . . . . . . . . . Repair Station Hacks . | . . . . . . . . . . . . . . . Recycling Unit Hacks 1 | . . . . . . . . . . . . . 1 . Retrieve Matter 1 | . . . . . . . . . . . . . 1 . Scanalyzer 7 | . . . . . . 4 . 3 . . . . . . Insert Component 4 | . . . . . . 2 . 2 . . . . . . Analyze 3 | . . . . . . 2 . 1 . . . . . . Garrison Access Hacks 3 | . . . . . . 1 . . 1 . . . 1 . Unlock Access 1 | . . . . . . 1 . . . . . . . . Seal Access 2 | . . . . . . . . . 1 . . . 1 . Unauthorized Hacks 7 | . 1 . . . . 3 . 1 . . . . 2 . Terminals 5 | . 1 . . . . 3 . 1 . . . . . . Track 1 | . . . . . . 1 . . . . . . . . Detonate 1 | . . . . . . 1 . . . . . . . . Operators 3 | . 1 . . . . 1 . 1 . . . . . . Fabricators . | . . . . . . . . . . . . . . . Repair Stations . | . . . . . . . . . . . . . . . Recycling Units 2 | . . . . . . . . . . . . . 2 . Reject 1 | . . . . . . . . . . . . . 1 . Mask 1 | . . . . . . . . . . . . . 1 . Scanalyzers . | . . . . . . . . . . . . . . . Garrison Access . | . . . . . . . . . . . . . . . Data Cores Recovered 1 | . 1 . . . . . . . . . . . . . Used . | . . . . . . . . . . . . . . . Hacking Detections 17 | . 3 . . . . 6 . 2 1 . . . 4 1 Full Trace Events 5 | . 1 . . . . . . . 1 . . . 2 1 Feedback Events . | . . . . . . . . . . . . . . . Feedback Blocked . | . . . . . . . . . . . . . . . Robot Schematics Acquired 4 | . . . . . . . . . . . 4 . . . Robots Built . | . . . . . . . . . . . . . . . Authchips . | . . . . . . . . . . . . . . . Time . | . . . . . . . . . . . . . . . Total Robot Build Rating . | . . . . . . . . . . . . . . . Part Schematics Acquired 17 | . 1 . . . . 2 . 1 1 . 12 . . . Parts Built . | . . . . . . . . . . . . . . . Authchips . | . . . . . . . . . . . . . . . Time . | . . . . . . . . . . . . . . . Total Part Build Rating . | . . . . . . . . . . . . . . . Parts Repaired . | . . . . . . . . . . . . . . . Time . | . . . . . . . . . . . . . . . Parts Recycled . | . . . . . . . . . . . . . . . Recycled Matter . | . . . . . . . . . . . . . . . Retrieved Matter . | . . . . . . . . . . . . . . . Retrieved Components . | . . . . . . . . . . . . . . . Parts Scanalyzed 3 | . . . . . . 2 . 1 . . . . . . Part Schematics Acquired 3 | . . . . . . 2 . 1 . . . . . . Parts Damaged . | . . . . . . . . . . . . . . . Bothacking | -11 -10 -9 -9 -9 -8 -8 -8 -8 -7 -7 -7 -6 -6 -6 ------------ Run | Yrd Mat Mat Min Exi Min Mat Gar Mat Fac Low Dat Pro Fac Ext Used RIF Installer 2 | . . . . . . . 2 . . . . . . . Command Fork 1 | . . . . . . . 1 . . . . . . . Robots Hacked 5 | . . . . . . . . 2 . . . . 3 . Non-combat 1 | . . . . . . . . . . . . . 1 . Combat 4 | . . . . . . . . 2 . . . . 2 . Robot Hacks Applied 5 | . . . . . . . . 2 . . . . 3 . ignore_repairs 1 | . . . . . . . . . . . . . 1 . disable_weapons 1 | . . . . . . . . . . . . . 1 . streamctrl_high 1 | . . . . . . . . 1 . . . . . . formatsys_high 2 | . . . . . . . . 1 . . . . 1 . Relay Couplers Released 16 | . . . . . . . 13 . . . . . 3 . Machine Destruction 16 | . . . . . . . 13 . . . . . 3 . Attached 4 | . . . . . . . . 2 . . . . 2 . Fabnet Peak Effective % . | . . . . . . . . . . . . . . . Robots Rewired . | . . . . . . . . . . . . . . . Allies Hacked . | . . . . . . . . . . . . . . . Hacks Repelled . | . . . . . . . . . . . . . . . Allies | -11 -10 -9 -9 -9 -8 -8 -8 -8 -7 -7 -7 -6 -6 -6 -------- Run | Yrd Mat Mat Min Exi Min Mat Gar Mat Fac Low Dat Pro Fac Ext Total Allies 8 | . . . 3 . . . . 2 . . . 1 2 . Largest Group 3 | . . . 3 1 . . . 1 . . . 1 2 . Highest-Rated Group 96 | . . . 40 16 . . . 90 . . . 96 96 . Highest-Rated Ally 96 | . . . 16 16 . . . 90 . . . 96 96 . Total Orders 5 | . . . 2 . . . . 2 . . . . 1 . GUARD 2 | . . . 1 . . . . . . . . . 1 . AID 3 | . . . 1 . . . . 2 . . . . . . Ally Attacks 52 | . . . 16 5 . . . 4 . . . 7 20 . Total Damage 1487 | . . . 89 60 . . . 61 . . . 183 1094 . Kills 11 | . . . 4 1 . . . . . . . 1 5 . Allies Corrupted . | . . . . . . . . . . . . . . . Allies Melted . | . . . . . . . . . . . . . . . Intel | -11 -10 -9 -9 -9 -8 -8 -8 -8 -7 -7 -7 -6 -6 -6 ------- Run | Yrd Mat Mat Min Exi Min Mat Gar Mat Fac Low Dat Pro Fac Ext Active Infowar (turns) 16183 | 21 465 102 948 1007 1112 1151 1625 630 1877 2623 346 1395 2881 . Sensors 13223 | . . 102 948 1007 1112 333 . 599 1877 2623 346 1395 2881 . Seismic 4718 | 21 465 102 756 . 761 957 1625 31 . . . . . . Robot Analysis Total 1 | . . . . . . 1 . . . . . . . . Derelict Logs Recovered 4 | . . . 1 . . . . . . 2 . 1 . . Drone Launches . | . . . . . . . . . . . . . . . Drone Recoveries . | . . . . . . . . . . . . . . . Exploration | -11 -10 -9 -9 -9 -8 -8 -8 -8 -7 -7 -7 -6 -6 -6 ------------- Run | Yrd Mat Mat Min Exi Min Mat Gar Mat Fac Low Dat Pro Fac Ext Turns Passed 18952 | 199 465 102 948 1007 1112 1351 1720 1022 2344 3343 346 1635 3301 57 Spaces Moved 9048 | 162 247 76 623 799 612 569 788 453 1459 1305 87 338 1456 74 Core 875 | 1 . . . . . . . . . 31 . . 769 74 Treads 1877 | . 71 28 . . 50 569 760 399 . . . . . . Legs 997 | . . . . . . . . . . 396 87 338 176 . Wheels 5299 | 161 176 48 623 799 562 . 28 54 1459 878 . . 511 . Hover . | . . . . . . . . . . . . . . . Flight . | . . . . . . . . . . . . . . . Fastest Speed 50 | 50 80 100 90 105 105 165 160 145 101 120 400 470 50 50 Average Speed 168 | 79 102 122 115 124 132 165 164 162 124 244 400 478 154 50 Slowest Speed 1400 | 80 160 160 135 135 250 165 165 165 160 1400 400 540 1300 50 Overloaded Moves . | . . . . . . . . . . . . . . . Propulsion Burnouts . | . . . . . . . . . . . . . . . Robots Hopped . | . . . . . . . . . . . . . . . Potential Cave-ins . | . . . . . . . . . . . . . . . Cave-ins Triggered . | . . . . . . . . . . . . . . . Exploration Rate (%) 51 | 7 41 11 100 91 94 47 54 40 34 96 73 48 23 16 Regions Visited 14 Branch Regions 7 Pre-discovered Areas 1 | . . . . . . . . . . . 1 . . . Known Exits Taken 7 | . . . . . . 1 . 1 1 1 1 1 1 . Unknown Exits Taken 6 | 1 1 1 1 1 1 . . . . . . . . . Scrap Searched 8 | . . . 2 . 1 . . . . 5 . . . . Spaces Dug 53 | . . . 1 . . . 39 . 13 . . . . . Terrain Destroyed 438 | 3 . . 1 15 . 36 125 58 76 42 . 28 54 . Melee 39 | . . . . . . . 39 . . . . . . . Projectile 33 | . . . 1 . . 6 . . 7 11 . 1 7 . AOE 366 | 3 . . . 15 . 30 86 58 69 31 . 27 47 . Terrain Rammed . | . . . . . . . . . . . . . . . Walls Destroyed . | . . . . . . . . . . . . . . . Machines Disabled . | . . . . . . . . . . . . . . . Actions | -11 -10 -9 -9 -9 -8 -8 -8 -8 -7 -7 -7 -6 -6 -6 --------- Run | Yrd Mat Mat Min Exi Min Mat Gar Mat Fac Low Dat Pro Fac Ext Total 11692 | 195 429 82 793 806 874 846 986 628 1780 1379 90 349 2361 94 Wait 1630 | . 154 . 116 . 200 154 44 92 127 5 . 1 737 . Move 9035 | 161 246 75 622 798 611 569 787 452 1458 1304 86 337 1455 74 Hop . | . . . . . . . . . . . . . . . Pick Up 111 | 7 6 2 9 2 11 18 10 6 22 5 . . 13 . Fast Attach 64 | 7 . . 4 1 8 4 1 2 13 5 . . 19 . Attach 77 | . 4 1 2 . 9 6 3 9 17 7 . 3 15 1 Detach 21 | . . . . . 5 . . . 2 2 3 . 8 1 Swap 127 | . 1 2 4 2 6 15 29 16 20 8 . 4 20 . Drop 76 | . 1 1 5 1 4 16 8 2 12 8 1 . 17 . Fire 429 | 20 17 1 31 2 19 63 31 42 92 35 . 4 72 . Melee 82 | . . . . . 1 1 73 6 1 . . . . . Ram 2 | . . . . . . . . . . . . . 2 . Kick . | . . . . . . . . . . . . . . . Crush . | . . . . . . . . . . . . . . . Escape Stasis 31 | . . . . . . . . . 16 . . . . 15 Rewire 6 | . . . . . . . . 1 . . . . 2 3 Trap 1 | . . . . . . . . . . . . . 1 . Miscellaneous . | . . . . . . . . . . . . . . . Route ------- -11/Scrapyard -10/Materials -9/Materials -9/Mines (discovered 3 exits: *Mat x2 / *Exi) -9/Exiles (discovered 2 exits: [*Min x2]) -8/Mines (discovered 2 exits: *Mat x2) -8/Materials (discovered 3 exits: *Fac x2 / Gar) -8/Garrison -8/Materials -7/Factory -7/Lower Caves (discovered 2 exits: *Low / *Dat) -7/Data Miner -6/Proximity Caves -6/Factory (discovered 2 exits: Fac / *Ext) -6/Extension History --------- Turn | Location | Event 13 | -11/Scrapyard | Discovered new exit (range 16) 200 | -11/Scrapyard | Entered Materials 315 | -10/Materials | Build established: Mutant 569 | -10/Materials | Lost 3 parts (1p1n1w) 578 | -10/Materials | Discovered new exit (range 12) 665 | -10/Materials | Entered another Materials area 665 | -9/Materials | Evolved 2 slots: Utility x2 744 | -9/Materials | Discovered new exit (range 11) 767 | -9/Materials | Entered Mines 917 | -9/Mines | Discovered new exit (range 14) 1205 | -9/Mines | Discovered new exit (range 10) 1234 | -9/Mines | Build established: Scavenger-Mutant 1370 | -9/Mines | Assisted by bots powering up and referring to "LRC-V3" 1372 | -9/Mines | Learned Materials terminal intel 1672 | -9/Mines | Received a Rocket Launcher from a helpful Derelict 1699 | -9/Mines | Deemed a non-threat by the Exiles lab entrance 1700 | -9/Mines | Discovered new exit (range 5) 1715 | -9/Mines | Entered Exiles 1715 | -9/Exiles | Accompanied by 1 ally 1736 | -9/Exiles | Discovered new exit (range 15) 1752 | -9/Exiles | Met 8R-AWN 1776 | -9/Exiles | Met EX-HEX 1819 | -9/Exiles | Met EX-BIN 1973 | -9/Exiles | Met EX-DEC 2028 | -9/Exiles | Visited The Gauntlet 2330 | -9/Exiles | Discovered new exit (range 14) 2686 | -9/Exiles | Attacked by the Exiles 2722 | -9/Exiles | Entered Mines 2755 | -8/Mines | 7V-RTL came to Exiles' defense 2818 | -8/Mines | Discovered new exit (range 8) 3088 | -8/Mines | Discovered new exit (range 14) 3242 | -8/Mines | Core integrity fell below 50% 3297 | -8/Mines | Lost 6 parts (1p2n3w) 3468 | -8/Mines | Found Prototype Device 3468 | -8/Mines | Identified 7V-RTL's Ultimate Field 3653 | -8/Mines | Destroyed 7V-RTL 3834 | -8/Mines | Entered Materials 3834 | -8/Materials | Evolved 2 slots: Propulsion x1, Weapon x1 3835 | -8/Materials | Loaded intel: 12 terminal locations 4261 | -8/Materials | Build established: Scavenger-Tank 4690 | -8/Materials | Discovered new exit (range 13) 4939 | -8/Materials | Garrison activated, responded to threat 5047 | -8/Materials | Garrison activated, responded to threat 5129 | -8/Materials | Discovered new exit (range 9) 5185 | -8/Materials | Identified exit to Garrison 5185 | -8/Materials | Entered Garrison 5279 | -8/Garrison | Triggered checkpoint 5314 | -8/Garrison | Garrison Relay disabled 5629 | -8/Garrison | Installed Relay Interface Framework 5779 | -8/Garrison | Build established: Mutant 5880 | -8/Garrison | Garrison Relay disabled 6061 | -8/Garrison | Triggered checkpoint 6225 | -8/Garrison | Triggered checkpoint 6273 | -8/Garrison | Garrison Relay disabled 6478 | -8/Garrison | Expanded RIF knowledge: Command Fork 6507 | -8/Garrison | Discovered new exit (range 10) 6802 | -8/Garrison | Build established: Scavenger-Mutant 6905 | -8/Garrison | Entered Materials 7128 | -8/Materials | Core integrity fell below 50% 7222 | -8/Materials | Build established: Mutant 7305 | -8/Materials | First assault squad dispatched 7785 | -8/Materials | Discovered new exit (range 16) 7855 | -8/Materials | Lost 5 parts (1p2n2w) 7925 | -8/Materials | Identified exit to Factory 7927 | -8/Materials | Entered Factory 7927 | -7/Factory | Evolved 2 slots: Propulsion x1, Utility x1 8404 | -7/Factory | Lost 5 parts (3n2w) 8635 | -7/Factory | Build established: Tank 8981 | -7/Factory | Build established: Skirmisher 9292 | -7/Factory | Lost 7 parts (3n1u3w) 9415 | -7/Factory | Lost 3 parts (1n1u1w) 9773 | -7/Factory | Build established: Scavenger-Skirmisher 10253 | -7/Factory | Discovered new exit (range 5) 10256 | -7/Factory | Identified exit to Lower Caves 10271 | -7/Factory | Entered Lower Caves 10313 | -7/Lower Caves | Encountered a Warlord checkpoint 10355 | -7/Lower Caves | Build established: Skirmisher 10395 | -7/Lower Caves | A Derelict revealed a hidden shortcut to meet someone special 10397 | -7/Lower Caves | Identified exit to Data Miner 10505 | -7/Lower Caves | Found Prototype Device 11327 | -7/Lower Caves | Learned Factory garrison access intel 11355 | -7/Lower Caves | Attracted the attention of an 0b10 base 11374 | -7/Lower Caves | Core integrity fell below 50% 11427 | -7/Lower Caves | Destroyed 7 combat bots 11429 | -7/Lower Caves | Lost 3 parts (2n1w) 11667 | -7/Lower Caves | Build established: Gunner 11743 | -7/Lower Caves | Lost 5 parts (3u2w) 11771 | -7/Lower Caves | Learned location of 1 exit from Factory 12001 | -7/Lower Caves | Discovered new exit (range 13) 12141 | -7/Lower Caves | Identified exit to Lower Caves 12198 | -7/Lower Caves | Core integrity fell below 20% 12252 | -7/Lower Caves | Build established: Skirmisher 13614 | -7/Lower Caves | Entered Data Miner 13616 | -7/Data Miner | Discovered new exit (range 6) 13692 | -7/Data Miner | Met Data Miner 13796 | -7/Data Miner | Learned location of Section 7 (-3) 13796 | -7/Data Miner | Acquired the access code to Warlord's prototype stash 13860 | -7/Data Miner | Received God Mode back door access code from Data Miner 13903 | -7/Data Miner | Build established: Mutant 13956 | -7/Data Miner | Identified exit to Proximity Caves 13960 | -7/Data Miner | Entered Proximity Caves 14020 | -6/Proximity Caves | Learned Factory emergency access door positions 14269 | -6/Proximity Caves | Build established: Skirmisher 14996 | -6/Proximity Caves | Discovered new exit (range 7) 15025 | -6/Proximity Caves | Identified exit to Factory 15107 | -6/Proximity Caves | Escorted by Enhanced Grunt 15413 | -6/Proximity Caves | Build established: Tank 15595 | -6/Proximity Caves | Entered Factory 15595 | -6/Factory | Accompanied by 1 ally 15595 | -6/Factory | Evolved 2 slots: Utility x2 15596 | -6/Factory | Identified exit to Factory 15596 | -6/Factory | Identified Heart of Steel 15598 | -6/Factory | Loaded intel: 4 garrison access locations 17562 | -6/Factory | Incoming investigation squad redirected 17668 | -6/Factory | Cargo convoy interrupted 17687 | -6/Factory | Incoming assault squad redirected 17690 | -6/Factory | Incoming assault squad redirected 17712 | -6/Factory | Build established: Skirmisher 18067 | -6/Factory | Garrison activated, responded to threat 18106 | -6/Factory | Incoming assault squad redirected 18110 | -6/Factory | Lost 4 parts (1n1u2w) 18297 | -6/Factory | Lost 7 parts (1p2n1u3w) 18344 | -6/Factory | Released all parts (6) 18348 | -6/Factory | Core integrity fell below 50% 18647 | -6/Factory | Build established: Mutant 18660 | -6/Factory | Incoming investigation squad redirected 18685 | -6/Factory | Incoming investigation squad redirected 18840 | -6/Factory | Discovered new exit (range 15) 18848 | -6/Factory | Identified exit to Extension 18896 | -6/Factory | Entered Extension 18945 | -6/Extension | Core integrity fell below 20% 18953 | -6/Extension | Destroyed by G-50 Soldier with Heavy Laser Last Messages --------------- 18918_ Field strength at 10. 18919_ Field strength at 4. 18920_ Stasis field depleted. 18927_ System corrupted: Component data lost. 18937_ Connecting with Terminal... 18937_ ALERT: Suspicious activity at Terminal E006. Dispatching Investigation squad. 18939_ O-16 Technician: "IFF HANDSHAKE FAILED. SECURING TERMINAL." 18939_ O-16 Technician sends out distress signal. 18943_ Triggered Proton Bomb Trap. 18943_ A bubble of electromagnetic force engulfs the area. 18943_ Door malfunctions. 18946_ ALERT: Hostiles spotted, dispatching reinforcements to Terminal E003. 18946_ Critical hit (Burn: +37). 18950_ System corrupted: Matter fused (-6). 18950_ Attempting to rewire 3Q-7HT(b). Map ----- +----------------------------------------------------+ | | | | | | | | | | | | | | | | | | | ?????????????????????????????????????????????????? | | ?????????????????????????????????????????????????? | | ????????#############????????????????????????????? | | ????????? ?????????????????????????????? | | ????????? = ?????????????????????????????? | | ?????????? ??????????????????????????????? | | ???????????= ???#???????????????????????????? | | ???????????? ??? #???????????????????????????? | | ????????????? ??? ????????????????????????????? | | ????????????##/###+#?????????????????????????????? | | ????????????# ??????????????????????????????? | | ############# #############????????????????????? | | g #????????????????????? | | ###### # +????????????????????? | | # # #????????????????????? | | # T" # g=g #????????????????????? | | " # b@ #????????????????????? | | # # g=g #????????????????????? | | # ########### #????????????????????? | | #######?????????#############????????????????????? | | ?????????????????????????????????????????????????? | | ?????????????????????????????????????????????????? | | ?????????????????????????????????????????????????? | | ?????????????????????????????????????????????????? | | ?????????????????????????????????????????????????? | | ?????????????????????????????????????????????????? | | ?????????????????????????????????????????????????? | | ?????????????????????????????????????????????????? | | ?????????????????????????????????????????????????? | | ?????????????????????????????????????????????????? | | ?????????????????????????????????????????????????? | | ?????????????????????????????????????????????????? | | ?????????????????????????????????????????????????? | | ?????????????????????????????????????????????????? | | ?????????????????????????????????????????????????? | | ?????????????????????????????????????????????????? | | ?????????????????????????????????????????????????? | | ????????????????????????????????????????????????? | | ????????????????????????????????????????????????? | | ????????????????????????????????????????????????? | | ????????????????????????????????????????????????? | +----------------------------------------------------+ Best States ------------- Heat Dissipation 64 Energy Generation 27 Energy Capacity 875 Matter Stores 300 Matter Capacity 300 Sight Range 16 Robot Scan Range 16 Terrain Scan Density 10 Power Amplification 40 Armor Coverage 600 Resistance: EM 25 Evasion (%) 50 Targeting Accuracy 8 Recoil Reduction 3 Kinecelleration 30 Relay Coupler Types 1 Relay Coupler Value 24 Authchip Count 1 Item Schematics ----------------- Com. Wheel | -10/Materials | Hacked Imp. Signal Interpreter | -8/Materials | Scanalyzed Seismic Detector | -8/Materials | Scanalyzed Remote Datajack | -8/Materials | Scanalyzed Fusion Compressor | -7/Factory | Hacked Combat Drone Bay | -7/Data Miner | Free Lgt. Regenerative Plating | -7/Data Miner | Free Biomechanical Wings | -7/Data Miner | Free Thermal Defense Suite | -7/Data Miner | Free Com. Ion Cannon | -7/Data Miner | Free Gyrokinetic Inverter | -7/Data Miner | Free KE Penetrator | -7/Data Miner | Free Adv. Salvage Targeting Computer | -7/Data Miner | Free Jamming Amplifier | -7/Data Miner | Free Rnf. Fission Core | -7/Data Miner | Free Imp. Point Defense System | -7/Data Miner | Free Adv. Coolant Injector | -7/Data Miner | Free Robot Schematics ------------------ B-48 Gladiator | -7/Data Miner | Free O-24 Administrator | -7/Data Miner | Free M-14 Sweeper | -7/Data Miner | Free G-50 Soldier | -7/Data Miner | Free Fabricated ------------ Nothing Repaired ---------- Nothing Alien Tech Used ----------------- None Achievements -------------- Assimilation Complete Overkill Challenges ------------ None Game ------ Seed ProjectileFortressVibroblade Manual? 0 Play Time 02:54:57 Cumulative 82.2 hours Start 2025.07.31 @ 16:23:22 End 2025.07.31 @ 23:14:22 Sessions 5 Manual Loads 0 Difficulty Rogue Special Mode None Game No. 105 Rogue 105 Adventurer 0 Explorer 0 Win Type - Total 0 Types 0/0/0/0/0/0/0/0/0/0 Lore% 57 Gallery% 40 Achievement% 39 Wizard Run 0 Options --------- Layout 1 ASCII 0 Keyboard 0 Movement Arrows Keybinds 0 Fullscreen 1 Font 24/Smallcaps Map View 50x35 Zoom Use 0% Tactical HUD 1 Map Filters NONE Filters NONE Steam 1 RUN: a846e8f2-8596-4ea1-8d39-fc8c4a9c3ad1